bitfinex/quotes_BTCUSD_20241120
["timestamp","ask_amount","ask_price","bid_price","bid_amount"]
[1732131208217,0.0008552,93490.0,93489.0,0.116964]
[1732131208441,0.0008552,93490.0,93489.0,0.216964]
[1732131209252,0.0008552,93490.0,93489.0,0.236964]
[1732131209253,2e-07,93490.0,93489.0,0.236964]
[1732131211040,9e-07,93499.0,93489.0,0.34407912]
[1732131211296,9e-07,93499.0,93498.0,0.41970881]
[1732131211793,9e-07,93499.0,93498.0,0.70957874]
[1732131212124,9e-07,93499.0,93498.0,0.52682393]
[1732131213177,9e-07,93499.0,93498.0,0.70957874]
[1732131213386,9e-07,93499.0,93498.0,0.52682393]
[1732131213607,9e-07,93499.0,93498.0,0.70957874]
[1732131213820,9e-07,93499.0,93498.0,0.52682393]
[1732131214027,9e-07,93499.0,93498.0,0.60342393]
[1732131214652,9e-07,93499.0,93498.0,0.64672161]
[1732131215276,0.0008544,93514.0,93513.0,0.126937]
[1732131215277,4e-07,93514.0,93513.0,0.126937]
[1732131215481,4e-07,93514.0,93513.0,0.40969181]
[1732131215689,4e-07,93514.0,93513.0,0.39969181]
[1732131215896,4e-07,93514.0,93513.0,0.38969181]
[1732131216104,4e-07,93514.0,93513.0,0.39969181]
[1732131216516,4e-07,93514.0,93513.0,0.40969181]
[1732131218148,4e-07,93514.0,93513.0,0.39969181]
[1732131218304,4e-07,93514.0,93513.0,0.44348555]
[1732131218748,4e-07,93514.0,93513.0,0.38347467]
[1732131219351,4e-07,93514.0,93513.0,0.26073074]
[1732131219836,4e-07,93514.0,93513.0,0.38347467]
[1732131220797,4e-07,93514.0,93513.0,0.106937]
[1732131221031,0.10711552,93514.0,93513.0,0.106937]
[1732131221782,0.10711552,93514.0,93511.0,0.106938]
[1732131221783,0.11379051,93514.0,93511.0,0.106938]
[1732131222037,0.11459592,93513.0,93512.0,0.106938]
[1732131222774,0.11379011,93513.0,93512.0,0.106938]
[1732131223246,0.12447176,93513.0,93512.0,0.106938]
[1732131224334,0.62447176,93513.0,93512.0,0.106938]
[1732131225401,0.61379075,93513.0,93512.0,0.106938]
[1732131225773,0.61329075,93513.0,93512.0,0.106938]
[1732131226988,0.61729613,93513.0,93512.0,0.106938]
[1732131227233,0.6239702,93513.0,93512.0,0.106938]
[1732131228926,0.6239702,93513.0,93509.0,0.20408255]
[1732131229129,0.60661512,93513.0,93512.0,0.106938]
[1732131229347,0.62397018,93513.0,93512.0,0.106938]
[1732131229826,0.62482518,93513.0,93512.0,0.106938]
[1732131230043,0.000855,93513.0,93512.0,0.216938]
[1732131230246,0.00752999,93513.0,93512.0,0.216938]
[1732131231101,0.00752946,93513.0,93512.0,0.216938]
[1732131232798,0.00752946,93513.0,93512.0,0.206938]
[1732131233661,0.62532419,93513.0,93512.0,0.106938]
[1732131233880,0.75362419,93513.0,93512.0,0.106938]
[1732131235799,0.75362419,93513.0,93509.0,0.160412]
[1732131235800,0.75362419,93513.0,93509.0,0.10694]
[1732131236052,0.75362419,93513.0,93489.0,0.10171]
[1732131236053,0.5,93502.0,93501.0,0.10695]
[1732131236340,0.62446919,93502.0,93501.0,0.10695]
[1732131236825,0.63782038,93502.0,93501.0,0.10695]
[1732131237066,0.63782038,93502.0,93489.0,0.108674]
[1732131237067,0.5,93490.0,93489.0,0.108674]
[1732131237305,0.67447402,93490.0,93489.0,0.208674]
[1732131237615,0.62447402,93490.0,93489.0,0.208674]
[1732131238956,0.0173589,93490.0,93489.0,0.208674]
[1732131239153,0.0173589,93490.0,93489.0,0.218674]
[1732131239360,0.0066765,93490.0,93489.0,0.218674]
[1732131239973,0.00080581,93506.0,93489.0,0.01171]
[1732131240228,0.00080581,93506.0,93504.0,0.106947]
[1732131240229,0.13114911,93505.0,93504.0,0.106947]
[1732131240403,0.13782515,93505.0,93504.0,0.106947]
[1732131243519,0.10711512,93505.0,93504.0,0.106947]
[1732131243726,0.000855,93513.0,93512.0,0.116938]
[1732131243972,0.01820924,93513.0,93512.0,0.116938]
[1732131244168,0.00752971,93513.0,93512.0,0.116938]
[1732131245231,0.00752971,93513.0,93512.0,0.216938]
[1732131245623,0.000855,93513.0,93512.0,0.216938]
[1732131245834,0.000855,93513.0,93512.0,0.2612685]
[1732131251181,0.0004,93519.0,93513.0,0.03]
[1732131251393,0.0004,93519.0,93513.0,0.34405212]
[1732131252031,4e-07,93519.0,93518.0,0.236931]
[1732131252240,4e-07,93519.0,93518.0,0.41959079]
[1732131253745,3e-07,93519.0,93518.0,0.41959079]
[1732131255690,7e-05,93525.0,93524.0,0.216924]
[1732131255691,3e-07,93525.0,93524.0,0.216924]
[1732131256327,3e-07,93525.0,93524.0,0.22799303]
[1732131256576,3e-07,93525.0,93524.0,0.236924]
[1732131258261,3e-07,93525.0,93524.0,0.36018508]
[1732131258505,3e-07,93525.0,93524.0,0.35818508]
[1732131258921,0.0004,93539.0,93524.0,0.35818508]
[1732131258922,0.0004,93539.0,93538.0,0.01]
[1732131259141,0.0004,93539.0,93538.0,0.39956779]
[1732131260851,0.0004,93539.0,93538.0,0.33960332]
[1732131263326,0.0004,93539.0,93538.0,0.38220947]
[1732131264839,0.0004,93539.0,93538.0,0.24951415]
[1732131265050,0.0004,93539.0,93538.0,0.25951415]
[1732131265259,0.0012549,93539.0,93538.0,0.25951415]
[1732131265509,0.0012549,93539.0,93538.0,0.05260615]
[1732131265740,0.0012549,93539.0,93538.0,0.15951415]
[1732131265952,0.0012549,93539.0,93538.0,0.16058321]
[1732131266375,0.0012549,93539.0,93538.0,0.16058309]
[1732131266592,0.0012549,93539.0,93538.0,0.15951415]
[1732131267664,0.0012549,93539.0,93538.0,0.25951415]
[1732131272306,9e-07,93539.0,93538.0,0.26951415]
[1732131273142,9e-07,93543.0,93542.0,0.226903]
[1732131273615,9e-07,93543.0,93542.0,0.46671344]
[1732131273822,0.0140285,93569.0,93542.0,0.46671344]
[1732131273823,9e-07,93559.0,93558.0,0.34958032]
[1732131274918,4e-07,93569.0,93568.0,0.02]
[1732131275121,2e-07,93579.0,93578.0,0.216862]
[1732131275325,2e-07,93579.0,93578.0,0.33955732]
[1732131277215,2e-07,93579.0,93578.0,0.34955732]
[1732131278668,2e-07,93579.0,93578.0,0.39248846]
[1732131280222,4e-07,93584.0,93583.0,0.126857]
[1732131280639,4e-07,93584.0,93583.0,0.226857]
[1732131283197,4e-07,93584.0,93583.0,0.216857]
[1732131283417,0.0831004,93584.0,93583.0,0.206857]
[1732131283650,0.0831004,93584.0,93583.0,0.216857]
[1732131283866,0.08976958,93584.0,93583.0,0.206857]
[1732131284085,0.2442847,93584.0,93583.0,0.106857]
[1732131284291,0.25495624,93584.0,93583.0,0.106857]
[1732131285161,0.25495624,93584.0,93581.0,0.106858]
[1732131285162,0.26829569,93584.0,93581.0,0.106858]
[1732131285393,0.6305,93575.0,93574.0,0.106867]
[1732131285610,0.75495721,93575.0,93574.0,0.106867]
[1732131286912,0.64784209,93575.0,93574.0,0.106867]
[1732131287127,0.14784209,93575.0,93574.0,0.106867]
[1732131288059,0.16118354,93575.0,93574.0,0.106867]
[1732131288286,0.14784356,93575.0,93574.0,0.116867]
[1732131288765,0.74828823,93575.0,93574.0,0.106867]
[1732131289207,0.75495892,93575.0,93574.0,0.106867]
[1732131290718,0.6478438,93575.0,93574.0,0.106867]
[1732131291411,0.1478438,93575.0,93574.0,0.106867]
[1732131292571,0.1478438,93575.0,93574.0,0.116867]
[1732131292572,0.00667069,93575.0,93574.0,0.116867]
[1732131292796,0.00667069,93575.0,93574.0,0.216867]
[1732131293239,4e-07,93584.0,93583.0,0.106857]
[1732131293463,0.01067175,93584.0,93583.0,0.116857]
[1732131293676,0.01734134,93584.0,93583.0,0.216857]
[1732131294124,9.9e-07,93584.0,93583.0,0.21792546]
[1732131294346,9.9e-07,93584.0,93583.0,0.216857]
[1732131294546,0.000855,93587.0,93586.0,0.216853]
[1732131296636,0.0004,93599.0,93592.0,0.116846]
[1732131296851,0.0004,93599.0,93592.0,0.33954132]
[1732131299683,0.0004,93599.0,93592.0,0.216846]
[1732131300353,0.0004,93599.0,93592.0,0.106846]
[1732131300354,0.23307012,93593.0,93592.0,0.106846]
[1732131300579,0.125955,93593.0,93592.0,0.116846]
[1732131301033,0.13662507,93593.0,93592.0,0.116846]
[1732131301449,0.13662507,93593.0,93592.0,0.106846]
[1732131301698,0.13662507,93593.0,93592.0,0.116846]
[1732131301925,0.24374019,93593.0,93592.0,0.106846]
[1732131302741,0.13662507,93593.0,93592.0,0.116846]
[1732131303460,0.24374019,93593.0,93592.0,0.106846]
[1732131306174,0.75040947,93593.0,93592.0,0.106846]
[1732131307462,0.25040947,93593.0,93592.0,0.106846]
[1732131308687,0.25041005,93593.0,93592.0,0.106846]
[1732131309711,0.26712507,93593.0,93592.0,0.106846]
[1732131309971,0.26374927,93593.0,93592.0,0.106846]
[1732131311828,0.25041005,93593.0,93592.0,0.106846]
[1732131312724,0.03153317,93593.0,93592.0,0.116846]
[1732131313152,0.03153317,93593.0,93592.0,0.106846]
[1732131313365,0.13864829,93593.0,93592.0,0.106846]
[1732131313578,0.12531005,93593.0,93592.0,0.106846]
[1732131314711,0.13864829,93593.0,93592.0,0.106846]
[1732131315141,0.12531101,93593.0,93592.0,0.106846]
[1732131315355,0.26555597,93593.0,93592.0,0.106846]
[1732131315572,0.26475016,93593.0,93592.0,0.106846]
[1732131316214,0.5,93588.0,93587.0,0.1085604]
[1732131316418,0.63779516,93588.0,93587.0,0.1085604]
[1732131317516,0.74664616,93588.0,93587.0,0.0017084]
[1732131317729,1.02341078,93588.0,93587.0,0.0017084]
[1732131317936,0.5,93575.0,93574.0,0.0017084]
[1732131318140,1.11456804,93575.0,93574.0,0.1085754]
[1732131318344,1.11456804,93575.0,93574.0,0.0017084]
[1732131318576,1.35389564,93575.0,93574.0,0.1085754]
[1732131318797,1.34055649,93575.0,93574.0,0.1085754]
[1732131319413,1.10122889,93575.0,93574.0,0.1085754]
[1732131319654,1.10441885,93575.0,93574.0,0.1085754]
[1732131319855,0.89151705,93575.0,93574.0,0.1085754]
[1732131320060,0.73061512,93575.0,93574.0,0.1085754]
[1732131320274,0.74796051,93575.0,93574.0,0.1085754]
[1732131320541,0.89149456,93575.0,93574.0,0.1085754]
[1732131321108,0.74796051,93575.0,93574.0,0.1085754]
[1732131321655,0.75796051,93575.0,93574.0,0.1085754]
[1732131321897,0.90149456,93575.0,93574.0,0.1085754]
[1732131322178,0.34362958,93575.0,93574.0,0.1085754]
[1732131322435,0.24796051,93575.0,93574.0,0.1085754]
[1732131323692,0.12446051,93575.0,93574.0,0.1085754]
[1732131323898,0.11378642,93575.0,93574.0,0.1085754]
[1732131324559,0.0066713,93575.0,93574.0,0.1185754]
[1732131324780,0.0066713,93575.0,93574.0,0.16218296]
[1732131325202,0.5,93594.0,93581.0,0.01]
[1732131325422,0.17636907,93595.0,93592.0,0.22954132]
[1732131325423,0.0807,93595.0,93592.0,0.22954132]
[1732131325627,0.00752445,93593.0,93592.0,0.106846]
[1732131325874,0.01819546,93593.0,93592.0,0.106846]
[1732131328004,0.12531058,93593.0,93592.0,0.106846]
[1732131328535,0.12611639,93593.0,93592.0,0.106846]
[1732131328939,0.11544527,93593.0,93592.0,0.106846]
[1732131329621,0.11463946,93593.0,93592.0,0.106846]
[1732131330002,0.00752434,93593.0,93592.0,0.106846]
[1732131330205,0.00752434,93593.0,93592.0,0.33954132]
[1732131330206,0.000855,93593.0,93592.0,0.33954132]
[1732131331591,0.000855,93593.0,93592.0,0.34179145]
[1732131332425,0.000855,93593.0,93592.0,0.33179145]
[1732131332646,0.000855,93593.0,93592.0,0.10909613]
[1732131332853,0.000855,93593.0,93592.0,0.24179145]
[1732131333572,0.000855,93593.0,93592.0,0.34179145]
[1732131338784,1e-06,93593.0,93592.0,0.34179145]
[1732131339418,0.00011786,93599.0,93598.0,0.206839]
[1732131339626,0.00011786,93599.0,93598.0,0.20790728]
[1732131339832,0.00011786,93599.0,93598.0,0.34242142]
[1732131339833,8.6e-07,93599.0,93598.0,0.34242142]
[1732131340142,0.72881598,93599.0,93598.0,0.00181882]
[1732131340316,0.72881598,93599.0,93598.0,0.10865782]
[1732131340525,0.73548472,93599.0,93598.0,0.106839]
[1732131340728,0.73548472,93599.0,93598.0,0.10860858]
[1732131346046,0.73548525,93599.0,93598.0,0.10860858]
[1732131346466,0.73634045,93599.0,93598.0,0.106839]
[1732131346890,0.73634045,93599.0,93598.0,0.10847033]
[1732131347668,0.742051,93588.0,93587.0,0.0017104]
[1732131347845,0.87883539,93588.0,93587.0,0.0017104]
[1732131348048,0.88950622,93588.0,93587.0,0.0017104]
[1732131348514,0.88950622,93588.0,93576.0,0.106864]
[1732131348515,0.5,93577.0,93576.0,0.106864]
[1732131348713,0.62445522,93577.0,93576.0,0.106864]
[1732131348889,0.61378439,93577.0,93576.0,0.106864]
[1732131349106,0.62445522,93577.0,93576.0,0.106864]
[1732131349856,0.61378439,93577.0,93576.0,0.106864]
[1732131350559,0.62445522,93577.0,93576.0,0.106864]
[1732131350805,0.61378439,93577.0,93576.0,0.106864]
[1732131351437,0.62445522,93577.0,93576.0,0.106864]
[1732131351666,0.61378439,93577.0,93576.0,0.106864]
[1732131351876,0.00666927,93577.0,93576.0,0.216864]
[1732131352086,0.00080581,93586.0,93585.0,0.106854]
[1732131352309,0.5,93589.0,93585.0,0.106854]
[1732131352310,0.5,93589.0,93588.0,0.106851]
[1732131352524,0.60711512,93589.0,93588.0,0.106851]
[1732131353401,0.60711512,93589.0,93588.0,0.216851]
[1732131353402,0.5,93589.0,93588.0,0.216851]
[1732131354701,0.5,93589.0,93588.0,0.26039543]
[1732131355470,0.5,93589.0,93588.0,0.26187953]
[1732131358714,0.5,93589.0,93588.0,0.26358973]
[1732131363997,0.00085606,93599.0,93598.0,0.216839]
[1732131364252,0.00085606,93599.0,93598.0,0.33953432]
[1732131364485,0.00085606,93599.0,93598.0,0.34100539]
[1732131364718,0.00085606,93599.0,93598.0,0.46370071]
[1732131365324,0.0479549,93619.0,93598.0,0.46370071]
[1732131365325,9e-07,93604.0,93603.0,0.116834]
[1732131365505,9e-07,93604.0,93603.0,0.306134]
[1732131365977,0.0012549,93619.0,93612.0,0.33951832]
[1732131366208,9e-07,93613.0,93612.0,0.33951832]
[1732131366669,9e-07,93613.0,93612.0,0.34097119]
[1732131368077,9e-07,93613.0,93612.0,0.35097119]
[1732131368538,8e-07,93619.0,93613.0,0.11]
[1732131368802,8e-07,93619.0,93618.0,0.32951232]
[1732131369000,8e-07,93619.0,93618.0,0.33951232]
[1732131369212,8e-07,93619.0,93618.0,0.34095697]
[1732131369675,8e-07,93619.0,93618.0,0.33747097]
[1732131372120,0.0008547,93633.0,93632.0,0.106801]
[1732131372509,0.0008547,93633.0,93632.0,0.46219164]
[1732131372637,0.0008547,93633.0,93632.0,0.46350002]
[1732131374524,7e-07,93633.0,93632.0,0.46350002]
[1732131375320,7e-07,93633.0,93632.0,0.50727961]
[1732131376688,7e-07,93633.0,93632.0,0.38458429]
[1732131380693,7e-07,93633.0,93632.0,0.32154682]
[1732131380932,0.00087581,93652.0,93636.0,0.106795]
[1732131380933,7e-07,93639.0,93636.0,0.106795]
[1732131381176,7e-07,93639.0,93638.0,0.22948932]
[1732131381725,7e-07,93639.0,93638.0,0.2306175]
[1732131382751,7e-07,93639.0,93638.0,0.3306175]
[1732131383375,7e-07,93639.0,93638.0,0.20792218]
[1732131385598,0.10711582,93639.0,93638.0,0.20792218]
[1732131386861,0.10711582,93639.0,93638.0,0.206794]
[1732131387932,0.23331582,93639.0,93638.0,0.106794]
[1732131390166,0.15411582,93639.0,93638.0,0.106794]
[1732131390406,0.10711582,93639.0,93638.0,0.106794]
[1732131395359,0.10797062,93639.0,93638.0,0.106794]
[1732131395767,0.11463573,93639.0,93638.0,0.106794]
[1732131397245,0.11463591,93639.0,93638.0,0.106794]
[1732131397815,0.25033591,93639.0,93638.0,0.106794]
[1732131398016,0.26100045,93639.0,93638.0,0.106794]
[1732131399018,0.01,93637.0,93636.0,0.106795]
[1732131399222,0.13525076,93637.0,93636.0,0.106795]
[1732131399477,0.16243139,93637.0,93636.0,0.106795]
[1732131399893,0.13525076,93637.0,93636.0,0.106795]
[1732131400301,0.62525076,93637.0,93636.0,0.106795]
[1732131400624,0.62444495,93637.0,93636.0,0.22949032]
[1732131404197,0.62444495,93637.0,93636.0,0.106795]
[1732131404623,0.01,93633.0,93632.0,0.0017096]
[1732131404835,0.01,93633.0,93632.0,0.1085106]
[1732131404836,0.13444495,93633.0,93632.0,0.1085106]
[1732131405243,0.12444495,93633.0,93632.0,0.1085106]
[1732131407441,0.00666529,93633.0,93632.0,0.1085106]
[1732131407650,0.5,93637.0,93636.0,0.106796]
[1732131407851,0.5,93637.0,93636.0,0.22949132]
[1732131408293,0.0008555,93639.0,93638.0,0.106794]
[1732131408716,0.00752037,93639.0,93638.0,0.106794]
[1732131409371,0.00752045,93639.0,93638.0,0.106794]
[1732131410455,0.0008555,93639.0,93638.0,0.106794]
[1732131411697,0.0008555,93639.0,93638.0,0.22948932]
[1732131412143,0.04164603,93649.0,93648.0,0.106782]
[1732131412353,0.04831082,93649.0,93648.0,0.106782]
[1732131417380,0.04831082,93649.0,93648.0,0.14981715]
[1732131417583,0.15542594,93649.0,93648.0,0.106782]
[1732131417985,0.16542594,93649.0,93648.0,0.106782]
[1732131418186,0.34797445,93649.0,93648.0,0.106782]
[1732131418383,0.5,93640.0,93639.0,0.106793]
[1732131418613,0.61377991,93640.0,93639.0,0.106793]
[1732131419394,0.00666479,93640.0,93639.0,0.10736621]
[1732131419608,0.11860073,93649.0,93639.0,0.10736621]
[1732131419820,0.11860073,93649.0,93648.0,0.106782]
[1732131420241,0.12526587,93649.0,93648.0,0.106782]
[1732131421443,0.23238098,93649.0,93648.0,0.106782]
[1732131423508,0.22571585,93649.0,93648.0,0.106782]
[1732131423708,0.23238098,93649.0,93648.0,0.106782]
[1732131423922,0.32817927,93649.0,93648.0,0.106782]
[1732131424333,0.32817927,93649.0,93638.0,0.04224597]
[1732131424334,0.5,93640.0,93636.0,0.106796]
[1732131424589,0.74738025,93640.0,93619.0,0.12269532]
[1732131424790,0.89107769,93640.0,93638.0,0.106794]
[1732131425028,0.74738025,93640.0,93639.0,0.10736621]
[1732131425149,1.10108247,93640.0,93639.0,0.10736621]
[1732131425349,0.74738124,93640.0,93639.0,0.10736621]
[1732131425955,0.74738124,93640.0,93639.0,0.23006153]
[1732131425956,0.73738124,93640.0,93639.0,0.23006153]
[1732131426380,0.73738124,93640.0,93639.0,0.10736621]
[1732131426381,0.83318711,93640.0,93639.0,0.10736621]
[1732131426595,0.73738124,93640.0,93639.0,0.10736621]
[1732131427696,0.61378124,93640.0,93639.0,0.10736621]
[1732131427910,0.00666612,93640.0,93639.0,0.10736621]
[1732131428794,0.00080581,93647.0,93646.0,0.106785]
[1732131428992,0.11378034,93647.0,93646.0,0.106785]
[1732131430481,0.10711512,93647.0,93646.0,0.106785]
[1732131430681,0.11378031,93647.0,93646.0,0.106785]
[1732131431752,0.00666519,93647.0,93646.0,0.106785]
[1732131431954,0.0008547,93649.0,93648.0,0.106782]
[1732131432161,0.11463461,93649.0,93648.0,0.106782]
[1732131432574,0.10796982,93649.0,93648.0,0.106782]
[1732131432781,0.11463452,93649.0,93648.0,0.106782]
[1732131433240,0.0075194,93649.0,93648.0,0.106782]
[1732131433438,0.0008547,93649.0,93648.0,0.106782]
[1732131433645,0.00751944,93649.0,93648.0,0.106782]
[1732131434522,0.00751944,93649.0,93648.0,0.10735519]
[1732131434934,0.0008547,93649.0,93648.0,0.10735519]
[1732131435151,0.10796982,93649.0,93648.0,0.10735518]
[1732131435352,0.10796982,93649.0,93648.0,0.15133061]
[1732131438098,0.0008547,93649.0,93648.0,0.37402593]
[1732131438513,0.0008547,93649.0,93648.0,0.37402592]
[1732131440150,0.0008547,93649.0,93648.0,0.37402591]
[1732131440883,0.0008547,93649.0,93648.0,0.3740259]
[1732131441104,0.0008547,93649.0,93648.0,0.3840259]
[1732131443600,0.0008547,93649.0,93648.0,0.38402589]
[1732131443798,0.0008547,93649.0,93648.0,0.37402589]
[1732131444438,7e-07,93649.0,93648.0,0.38402589]
[1732131444822,0.0004,93659.0,93649.0,0.1]
[1732131445033,0.0004,93659.0,93658.0,0.45216164]
[1732131445246,0.0004,93659.0,93658.0,0.45273477]
[1732131446154,0.0004,93659.0,93658.0,0.45273476]
[1732131447717,0.0004,93659.0,93658.0,0.49703133]
[1732131447923,0.0008546,93669.0,93661.0,0.01]
[1732131448139,0.0008546,93669.0,93668.0,0.20676]
[1732131448339,0.0008546,93669.0,93668.0,0.20840054]
[1732131448565,0.0008546,93669.0,93668.0,0.2084005]
[1732131449162,0.0008546,93669.0,93668.0,0.20840049]
[1732131449373,0.0008546,93669.0,93668.0,0.2073331]
[1732131450567,0.0008546,93669.0,93668.0,0.33002842]
[1732131450767,0.0008546,93669.0,93668.0,0.37408947]
[1732131450975,0.0008546,93669.0,93668.0,0.38408946]
[1732131452133,6e-07,93669.0,93668.0,0.51420458]
[1732131452347,0.0004,93679.0,93678.0,0.206748]
[1732131452553,0.0004,93679.0,93678.0,0.34108365]
[1732131452769,0.0004,93679.0,93678.0,0.3400164]
[1732131453175,0.0004,93679.0,93678.0,0.34001639]
[1732131454192,1e-06,93679.0,93678.0,0.41651639]
[1732131454409,1e-06,93679.0,93678.0,0.41651638]
[1732131454624,2e-07,93681.0,93680.0,0.216746]
[1732131454858,2e-07,93681.0,93680.0,0.21731906]
[1732131455066,2e-07,93681.0,93680.0,0.34108157]
[1732131455281,2e-07,93681.0,93680.0,0.34001438]
[1732131455688,2e-07,93681.0,93680.0,0.34001437]
[1732131455896,2e-07,93681.0,93680.0,0.21731905]
[1732131456105,2e-07,93681.0,93680.0,0.21838624]
[1732131456435,2e-07,93681.0,93680.0,0.34108156]
[1732131456787,2e-07,93681.0,93680.0,0.34001437]
[1732131456935,2e-07,93681.0,93680.0,0.34001436]
[1732131457139,2e-07,93681.0,93680.0,0.21731904]
[1732131457369,2e-07,93681.0,93680.0,0.21838623]
[1732131457568,2e-07,93681.0,93680.0,0.21731904]
[1732131458190,2e-07,93681.0,93680.0,0.20731904]
[1732131458388,2e-07,93681.0,93680.0,0.20731903]
[1732131460504,2e-07,93681.0,93680.0,0.20731902]
[1732131460931,2e-07,93681.0,93680.0,0.20838632]
[1732131461141,2e-07,93681.0,93680.0,0.20731902]
[1732131463292,2e-07,93681.0,93680.0,0.20731901]
[1732131464285,0.15521532,93681.0,93680.0,0.10731901]
[1732131465076,0.23957836,93681.0,93680.0,0.10731901]
[1732131465486,0.25157836,93681.0,93680.0,0.00057301]
[1732131465850,0.24957866,93681.0,93680.0,0.00057301]
[1732131466058,0.24291532,93681.0,93680.0,0.00057301]
[1732131466549,0.24291532,93681.0,93680.0,0.10731901]
[1732131466981,0.24291532,93681.0,93680.0,0.107319]
[1732131467197,0.23957859,93681.0,93680.0,0.107319]
[1732131467621,0.2395785,93681.0,93680.0,0.107319]
[1732131467815,0.24291532,93681.0,93680.0,0.107319]
[1732131468189,0.23957808,93681.0,93680.0,0.107319]
[1732131468369,0.24957808,93681.0,93680.0,0.107319]
[1732131468804,0.23957808,93681.0,93680.0,0.107319]
[1732131469464,0.23457808,93681.0,93680.0,0.107319]
[1732131470562,0.13246276,93681.0,93680.0,0.107319]
[1732131470716,0.0008542,93687.0,93686.0,0.106739]
[1732131471065,0.11463155,93687.0,93686.0,0.107312]
[1732131471267,0.11463155,93687.0,93686.0,0.10731199]
[1732131473936,0.11463178,93687.0,93686.0,0.10731199]
[1732131475558,0.11463178,93687.0,93686.0,0.10731198]
[1732131476407,0.106755,93672.0,93643.0,0.01]
[1732131476611,0.116758,93669.0,93658.0,0.106771]
[1732131476810,0.31934139,93669.0,93638.0,0.12269532]
[1732131477006,0.31187312,93669.0,93662.0,0.106766]
[1732131477273,0.31187312,93669.0,93638.0,0.12269532]
[1732131477274,0.21177967,93669.0,93660.0,0.106768]
[1732131477431,0.20592093,93669.0,93661.0,0.106767]
[1732131477634,0.20392093,93669.0,93665.0,0.106762]
[1732131478020,0.01,93663.0,93661.0,0.106767]
[1732131478221,0.10711512,93662.0,93661.0,0.106767]
[1732131478653,0.12444369,93662.0,93661.0,0.106767]
[1732131478879,0.12444369,93662.0,93661.0,0.22946232]
[1732131479053,0.00666486,93662.0,93661.0,0.22946232]
[1732131479310,0.5,93664.0,93661.0,0.22946232]
[1732131479311,0.5,93664.0,93661.0,0.27373254]
[1732131479426,0.076,93669.0,93668.0,0.10676]
[1732131479627,0.08266377,93669.0,93668.0,0.10676]
[1732131480271,0.08266377,93669.0,93661.0,0.04427022]
[1732131480272,0.5,93662.0,93661.0,0.106768]
[1732131480814,0.0454,93661.0,93649.0,0.00051475]
[1732131480994,0.10792093,93660.0,93658.0,0.10677]
[1732131481197,0.11458541,93660.0,93658.0,0.10677]
[1732131481429,0.11458541,93660.0,93649.0,0.00051475]
[1732131481430,0.00666448,93659.0,93655.0,0.106773]
[1732131481630,0.11458541,93658.0,93655.0,0.106774]
[1732131481839,0.11458541,93658.0,93649.0,0.00051475]
[1732131481840,0.5,93651.0,93649.0,0.00051475]
[1732131482038,0.23252093,93650.0,93649.0,0.00051475]
[1732131482241,0.23171512,93650.0,93649.0,0.00051475]
[1732131482443,0.2383802,93650.0,93649.0,0.00051475]
[1732131483152,0.2383802,93650.0,93649.0,0.10729575]
[1732131483366,0.2383802,93650.0,93649.0,0.00051475]
[1732131483508,0.4549421,93650.0,93649.0,0.00051475]
[1732131483863,0.4549421,93650.0,93632.0,0.0017096]
[1732131483864,0.01,93637.0,93632.0,0.0017096]
[1732131484178,0.01,93634.0,93632.0,0.0017096]
[1732131484385,0.10792093,93633.0,93632.0,0.0017096]
[1732131484599,0.10792093,93633.0,93632.0,0.1085106]
[1732131484805,0.10792093,93633.0,93632.0,0.0017096]
[1732131484979,0.11792093,93633.0,93632.0,0.0017096]
[1732131485784,0.12792093,93633.0,93632.0,0.0017096]
[1732131486596,0.20690998,93633.0,93632.0,0.0017096]
[1732131487248,0.11792093,93633.0,93632.0,0.1085106]
[1732131487368,0.11792093,93633.0,93632.0,0.0017096]
[1732131487575,0.12792093,93633.0,93632.0,0.0017096]
[1732131488554,0.12792093,93633.0,93632.0,0.1085106]
[1732131488755,0.12711512,93633.0,93632.0,0.0017096]
[1732131488984,0.12792093,93633.0,93632.0,0.0017096]
[1732131489370,0.11792093,93633.0,93632.0,0.0017096]
[1732131489521,0.11792093,93633.0,93632.0,0.1085106]
[1732131489724,0.11711512,93633.0,93632.0,0.1085106]
[1732131489924,0.12711512,93633.0,93632.0,0.0017096]
[1732131490158,0.11711512,93633.0,93632.0,0.1085106]
[1732131490359,0.12711512,93633.0,93632.0,0.0017096]
[1732131490569,0.11711512,93633.0,93632.0,0.1085106]
[1732131490744,0.10711512,93633.0,93632.0,0.1085106]
[1732131490927,0.11711512,93633.0,93632.0,0.1085106]
[1732131491313,0.61711512,93633.0,93632.0,0.0017096]
[1732131491440,0.62711512,93633.0,93632.0,0.0017096]
[1732131491711,0.71319573,93633.0,93632.0,0.0017096]
[1732131491890,0.60711512,93633.0,93632.0,0.1085106]
[1732131492098,0.61711512,93633.0,93632.0,0.1085106]
[1732131492387,0.60711512,93633.0,93632.0,0.1085106]
[1732131494281,0.01,93647.0,93644.0,0.106787]
[1732131494282,0.0465,93647.0,93644.0,0.106787]
[1732131494439,0.0465,93647.0,93632.0,0.0017096]
[1732131494440,0.10792093,93646.0,93642.0,0.106788]
[1732131494656,0.10792093,93646.0,93645.0,0.106786]
[1732131498535,0.10792093,93646.0,93639.0,0.106793]
[1732131498934,0.10792093,93646.0,93645.0,0.106786]
[1732131499157,0.5,93639.0,93638.0,0.106794]
[1732131499388,0.60711512,93639.0,93638.0,0.106794]
[1732131501463,0.60711512,93639.0,93638.0,0.22948932]
[1732131502855,0.60711512,93639.0,93638.0,0.23120012]
[1732131505284,0.0465,93647.0,93646.0,0.106785]
[1732131505482,0.10711512,93647.0,93646.0,0.22948032]
[1732131505716,0.10711512,93647.0,93639.0,0.106793]
[1732131505717,0.10711512,93647.0,93639.0,0.12269532]
[1732131505872,0.10792093,93646.0,93645.0,0.106786]
[1732131507442,0.10711512,93646.0,93645.0,0.106786]
[1732131512333,0.5,93649.0,93648.0,0.106782]
[1732131512570,0.5,93649.0,93648.0,0.22947732]
[1732131516013,0.5,93649.0,93644.0,0.0017112]
[1732131516014,0.65311512,93649.0,93644.0,0.0017112]
[1732131516144,0.18742093,93648.0,93644.0,0.0017112]
[1732131516986,0.18742093,93648.0,93645.0,0.106786]
[1732131517176,0.18742093,93648.0,93645.0,0.106785]
[1732131517776,0.18742093,93648.0,93644.0,0.0017112]
[1732131518190,0.22590112,93645.0,93644.0,0.0017112]
[1732131518392,0.10711512,93645.0,93644.0,0.0017112]